{"text_format":"3","workbook":"xlsx","n_sheets":1,"sheets":["Личен месечен бюджет"],"read":"whole","date_system":"1900"}

{"sheet":"Личен месечен бюджет","index":0,"n_rows":64,"n_cols":10,"rows_kept":64,"merged":[[1,1,1,9],[2,1,2,9],[4,1,6,1],[4,2,4,3],[4,6,5,8],[4,9,5,9],[5,2,5,3],[6,2,6,3],[6,6,7,8],[6,9,7,9],[7,1,9,1],[7,2,7,3],[8,2,8,3],[8,6,9,8],[8,9,9,9],[9,2,9,3],[22,6,22,9],[23,1,23,4],[31,6,31,9],[33,1,33,4],[38,6,38,9],[40,1,40,4],[44,6,44,9],[46,1,46,4],[50,6,50,9],[54,1,54,4],[57,6,57,9],[58,6,59,8],[58,9,59,9],[60,6,61,8],[60,9,61,9],[62,6,63,8],[62,9,63,9]]}
[]
[null,"Личен месечен бюджет"]
[]
[]
[null,"ПЛАНИРАН МЕСЕЧЕН ДОХОД","Доход 1",null,{"v":2500,"d":"2,500 лв."},null,"ПЛАНИРАН БАЛАНС (планиран приход минус разходи)",null,null,{"$f":"E7-J59","v":{"v":940,"d":"940 лв."}}]
[null,null,"Допълнителен доход",null,{"v":500,"d":"500 лв."}]
[null,null,"Общ месечен доход",null,{"$f":"SUM(E5:E6)","v":{"v":3000,"d":"3,000 лв."}},null,"ДЕЙСТВИТЕЛЕН БАЛАНС (действителен приход минус разходи)",null,null,{"$f":"E10-J61","v":{"v":960,"d":"960 лв."}}]
[null,"ДЕЙСТВИТЕЛЕН МЕСЕЧЕН ДОХОД","Доход 1",null,{"v":2500,"d":"2,500 лв."}]
[null,null,"Допълнителен доход",null,{"v":500,"d":"500 лв."},null,"РАЗЛИКА (действителен минус планиран)",null,null,{"$f":"J7-J5","v":{"v":20,"d":"20 лв."}}]
[null,null,"Общ месечен доход",null,{"$f":"SUM(E8:E9)","v":{"v":3000,"d":"3,000 лв."}}]
[]
[null,"ДОМАКИНСТВО","Планиран разход","Действителен разход","Разлика",null,"РАЗВЛЕЧЕНИЯ","Планиран разход","Действителен разход","Разлика"]
[null,"Ипотека или наем",{"v":1500,"d":"1,500 лв."},{"v":1400,"d":"1,400 лв."},{"$f":"Таблица1[[#This Row],[Планиран разход]]-Таблица1[[#This Row],[Действителен разход]]","v":{"v":100,"d":"100 лв."}},null,"Видео/DVD",{"v":0,"d":"0 лв."},{"v":50,"d":"50 лв."},{"$f":"Таблица2[[#This Row],[Планиран разход]]-Таблица2[[#This Row],[Действителен разход]]","v":{"v":-50,"d":"-50 лв."}}]
[null,"Телефон",{"v":60,"d":"60 лв."},{"v":100,"d":"100 лв."},{"$f":"Таблица1[[#This Row],[Планиран разход]]-Таблица1[[#This Row],[Действителен разход]]","v":{"v":-40,"d":"-40 лв."}},null,"Компактдискове",null,null,{"$f":"Таблица2[[#This Row],[Планиран разход]]-Таблица2[[#This Row],[Действителен разход]]","v":{"v":0,"d":"0 лв."}}]
[null,"Електричество",{"v":50,"d":"50 лв."},{"v":60,"d":"60 лв."},{"$f":"Таблица1[[#This Row],[Планиран разход]]-Таблица1[[#This Row],[Действителен разход]]","v":{"v":-10,"d":"-10 лв."}},null,"Филми",null,null,{"$f":"Таблица2[[#This Row],[Планиран разход]]-Таблица2[[#This Row],[Действителен разход]]","v":{"v":0,"d":"0 лв."}}]
[null,"Газ",{"v":200,"d":"200 лв."},{"v":180,"d":"180 лв."},{"$f":"Таблица1[[#This Row],[Планиран разход]]-Таблица1[[#This Row],[Действителен разход]]","v":{"v":20,"d":"20 лв."}},null,"Концерти",null,null,{"$f":"Таблица2[[#This Row],[Планиран разход]]-Таблица2[[#This Row],[Действителен разход]]","v":{"v":0,"d":"0 лв."}}]
[null,"ВИК",null,null,{"$f":"Таблица1[[#This Row],[Планиран разход]]-Таблица1[[#This Row],[Действителен разход]]","v":{"v":0,"d":"0 лв."}},null,"Спортни събития",null,null,{"$f":"Таблица2[[#This Row],[Планиран разход]]-Таблица2[[#This Row],[Действителен разход]]","v":{"v":0,"d":"0 лв."}}]
[null,"Кабелна телевизия",null,null,{"$f":"Таблица1[[#This Row],[Планиран разход]]-Таблица1[[#This Row],[Действителен разход]]","v":{"v":0,"d":"0 лв."}},null,"Театър",null,null,{"$f":"Таблица2[[#This Row],[Планиран разход]]-Таблица2[[#This Row],[Действителен разход]]","v":{"v":0,"d":"0 лв."}}]
[null,"Такса смет",null,null,{"$f":"Таблица1[[#This Row],[Планиран разход]]-Таблица1[[#This Row],[Действителен разход]]","v":{"v":0,"d":"0 лв."}},null,"Други",null,null,{"$f":"Таблица2[[#This Row],[Планиран разход]]-Таблица2[[#This Row],[Действителен разход]]","v":{"v":0,"d":"0 лв."}}]
[null,"Поддръжка или ремонти",null,null,{"$f":"Таблица1[[#This Row],[Планиран разход]]-Таблица1[[#This Row],[Действителен разход]]","v":{"v":0,"d":"0 лв."}},null,"Други",null,null,{"$f":"Таблица2[[#This Row],[Планиран разход]]-Таблица2[[#This Row],[Действителен разход]]","v":{"v":0,"d":"0 лв."}}]
[null,"Доставки",null,null,{"$f":"Таблица1[[#This Row],[Планиран разход]]-Таблица1[[#This Row],[Действителен разход]]","v":{"v":0,"d":"0 лв."}},null,"Други",null,null,{"$f":"Таблица2[[#This Row],[Планиран разход]]-Таблица2[[#This Row],[Действителен разход]]","v":{"v":0,"d":"0 лв."}}]
[null,"Други",null,null,{"$f":"Таблица1[[#This Row],[Планиран разход]]-Таблица1[[#This Row],[Действителен разход]]","v":{"v":0,"d":"0 лв."}},null,"Общо",{"$f":"SUBTOTAL(109,Таблица2[Планиран разход])","v":{"v":0,"d":"0 лв."}},{"$f":"SUBTOTAL(109,Таблица2[Действителен разход])","v":{"v":50,"d":"50 лв."}},{"$f":"SUBTOTAL(109,Таблица2[Разлика])","v":{"v":-50,"d":"-50 лв."}}]
[null,"Общо",{"$f":"SUBTOTAL(109,Таблица1[Планиран разход])","v":{"v":1810,"d":"1,810 лв."}},{"$f":"SUBTOTAL(109,Таблица1[Действителен разход])","v":{"v":1740,"d":"1,740 лв."}},{"$f":"SUBTOTAL(109,Таблица1[Разлика])","v":{"v":70,"d":"70 лв."}}]
[{"$nulls":6},"ЗАЕМИ","Планиран разход","Действителен разход","Разлика"]
[null,"ТРАНСПОРТ","Планиран разход","Действителен разход","Разлика",null,"Лични",null,null,{"$f":"Таблица8[[#This Row],[Планиран разход]]-Таблица8[[#This Row],[Действителен разход]]","v":{"v":0,"d":"0 лв."}}]
[null,"Плащане за автомобил",{"v":250,"d":"250 лв."},{"v":250,"d":"250 лв."},{"$f":"Таблица3[[#This Row],[Планиран разход]]-Таблица3[[#This Row],[Действителен разход]]","v":{"v":0,"d":"0 лв."}},null,"Студентски",null,null,{"$f":"Таблица8[[#This Row],[Планиран разход]]-Таблица8[[#This Row],[Действителен разход]]","v":{"v":0,"d":"0 лв."}}]
[null,"Разходи за автобус/такси",null,null,{"$f":"Таблица3[[#This Row],[Планиран разход]]-Таблица3[[#This Row],[Действителен разход]]","v":{"v":0,"d":"0 лв."}},null,"Кредитна карта",null,null,{"$f":"Таблица8[[#This Row],[Планиран разход]]-Таблица8[[#This Row],[Действителен разход]]","v":{"v":0,"d":"0 лв."}}]
[null,"Застраховка",null,null,{"$f":"Таблица3[[#This Row],[Планиран разход]]-Таблица3[[#This Row],[Действителен разход]]","v":{"v":0,"d":"0 лв."}},null,"Кредитна карта",null,null,{"$f":"Таблица8[[#This Row],[Планиран разход]]-Таблица8[[#This Row],[Действителен разход]]","v":{"v":0,"d":"0 лв."}}]
[null,"Лицензи",null,null,{"$f":"Таблица3[[#This Row],[Планиран разход]]-Таблица3[[#This Row],[Действителен разход]]","v":{"v":0,"d":"0 лв."}},null,"Кредитна карта",null,null,{"$f":"Таблица8[[#This Row],[Планиран разход]]-Таблица8[[#This Row],[Действителен разход]]","v":{"v":0,"d":"0 лв."}}]
[null,"Гориво",null,null,{"$f":"Таблица3[[#This Row],[Планиран разход]]-Таблица3[[#This Row],[Действителен разход]]","v":{"v":0,"d":"0 лв."}},null,"Други",null,null,{"$f":"Таблица8[[#This Row],[Планиран разход]]-Таблица8[[#This Row],[Действителен разход]]","v":{"v":0,"d":"0 лв."}}]
[null,"Поддръжка",null,null,{"$f":"Таблица3[[#This Row],[Планиран разход]]-Таблица3[[#This Row],[Действителен разход]]","v":{"v":0,"d":"0 лв."}},null,"Общо",{"$f":"SUBTOTAL(109,Таблица8[Планиран разход])","v":{"v":0,"d":"0 лв."}},{"$f":"SUBTOTAL(109,Таблица8[Действителен разход])","v":{"v":0,"d":"0 лв."}},{"$f":"SUBTOTAL(109,Таблица8[Разлика])","v":{"v":0,"d":"0 лв."}}]
[null,"Други",null,null,{"$f":"Таблица3[[#This Row],[Планиран разход]]-Таблица3[[#This Row],[Действителен разход]]","v":{"v":0,"d":"0 лв."}}]
[null,"Общо",{"$f":"SUBTOTAL(109,Таблица3[Планиран разход])","v":{"v":250,"d":"250 лв."}},{"$f":"SUBTOTAL(109,Таблица3[Действителен разход])","v":{"v":250,"d":"250 лв."}},{"$f":"SUBTOTAL(109,Таблица3[Разлика])","v":{"v":0,"d":"0 лв."}},null,"ДАНЪЦИ","Планиран разход","Действителен разход","Разлика"]
[{"$nulls":6},"Държавен",null,null,{"$f":"Таблица9[[#This Row],[Планиран разход]]-Таблица9[[#This Row],[Действителен разход]]","v":{"v":0,"d":"0 лв."}}]
[null,"ЗАСТРАХОВКА","Планиран разход","Действителен разход","Разлика",null,"Областен",null,null,{"$f":"Таблица9[[#This Row],[Планиран разход]]-Таблица9[[#This Row],[Действителен разход]]","v":{"v":0,"d":"0 лв."}}]
[null,"Дом",null,null,{"$f":"Таблица4[[#This Row],[Планиран разход]]-Таблица4[[#This Row],[Действителен разход]]","v":{"v":0,"d":"0 лв."}},null,"Местен",null,null,{"$f":"Таблица9[[#This Row],[Планиран разход]]-Таблица9[[#This Row],[Действителен разход]]","v":{"v":0,"d":"0 лв."}}]
[null,"Здравеопазване",null,null,{"$f":"Таблица4[[#This Row],[Планиран разход]]-Таблица4[[#This Row],[Действителен разход]]","v":{"v":0,"d":"0 лв."}},null,"Други",null,null,{"$f":"Таблица9[[#This Row],[Планиран разход]]-Таблица9[[#This Row],[Действителен разход]]","v":{"v":0,"d":"0 лв."}}]
[null,"Живот",null,null,{"$f":"Таблица4[[#This Row],[Планиран разход]]-Таблица4[[#This Row],[Действителен разход]]","v":{"v":0,"d":"0 лв."}},null,"Общо",{"$f":"SUBTOTAL(109,Таблица9[Планиран разход])","v":{"v":0,"d":"0 лв."}},{"$f":"SUBTOTAL(109,Таблица9[Действителен разход])","v":{"v":0,"d":"0 лв."}},{"$f":"SUBTOTAL(109,Таблица9[Разлика])","v":{"v":0,"d":"0 лв."}}]
[null,"Други",null,null,{"$f":"Таблица4[[#This Row],[Планиран разход]]-Таблица4[[#This Row],[Действителен разход]]","v":{"v":0,"d":"0 лв."}}]
[null,"Общо",{"$f":"SUBTOTAL(109,Таблица4[Планиран разход])","v":{"v":0,"d":"0 лв."}},{"$f":"SUBTOTAL(109,Таблица4[Действителен разход])","v":{"v":0,"d":"0 лв."}},{"$f":"SUBTOTAL(109,Таблица4[Разлика])","v":{"v":0,"d":"0 лв."}},null,"СПЕСТЯВАНИЯ ИЛИ ИНВЕСТИЦИИ","Планиран разход","Действителен разход","Разлика"]
[{"$nulls":6},"Пенсионна сметка",null,null,{"$f":"Таблица10[[#This Row],[Планиран разход]]-Таблица10[[#This Row],[Действителен разход]]","v":{"v":0,"d":"0 лв."}}]
[null,"ХРАНА","Планиран разход","Действителен разход","Разлика",null,"Инвестиционна сметка",null,null,{"$f":"Таблица10[[#This Row],[Планиран разход]]-Таблица10[[#This Row],[Действителен разход]]","v":{"v":0,"d":"0 лв."}}]
[null,"Хранителни стоки",null,null,{"$f":"Таблица5[[#This Row],[Планиран разход]]-Таблица5[[#This Row],[Действителен разход]]","v":{"v":0,"d":"0 лв."}},null,"Други",null,null,{"$f":"Таблица10[[#This Row],[Планиран разход]]-Таблица10[[#This Row],[Действителен разход]]","v":{"v":0,"d":"0 лв."}}]
[null,"Заведения",null,null,{"$f":"Таблица5[[#This Row],[Планиран разход]]-Таблица5[[#This Row],[Действителен разход]]","v":{"v":0,"d":"0 лв."}},null,"Общо",{"$f":"SUBTOTAL(109,Таблица10[Планиран разход])","v":{"v":0,"d":"0 лв."}},{"$f":"SUBTOTAL(109,Таблица10[Действителен разход])","v":{"v":0,"d":"0 лв."}},{"$f":"SUBTOTAL(109,Таблица10[Разлика])","v":{"v":0,"d":"0 лв."}}]
[null,"Други",null,null,{"$f":"Таблица5[[#This Row],[Планиран разход]]-Таблица5[[#This Row],[Действителен разход]]","v":{"v":0,"d":"0 лв."}}]
[null,"Общо",{"$f":"SUBTOTAL(109,Таблица5[Планиран разход])","v":{"v":0,"d":"0 лв."}},{"$f":"SUBTOTAL(109,Таблица5[Действителен разход])","v":{"v":0,"d":"0 лв."}},{"$f":"SUBTOTAL(109,Таблица5[Разлика])","v":{"v":0,"d":"0 лв."}},null,"БЛАГОТВОРИТЕЛНОСТ И ДАРЕНИЯ","Планиран разход","Действителен разход","Разлика"]
[{"$nulls":6},"Благотворителност 1",null,null,{"$f":"Таблица11[[#This Row],[Планиран разход]]-Таблица11[[#This Row],[Действителен разход]]","v":{"v":0,"d":"0 лв."}}]
[null,"ДОМАШНИ ЛЮБИМЦИ","Планиран разход","Действителен разход","Разлика",null,"Благотворителност 2",null,null,{"$f":"Таблица11[[#This Row],[Планиран разход]]-Таблица11[[#This Row],[Действителен разход]]","v":{"v":0,"d":"0 лв."}}]
[null,"Храна",null,null,{"$f":"Таблица6[[#This Row],[Планиран разход]]-Таблица6[[#This Row],[Действителен разход]]","v":{"v":0,"d":"0 лв."}},null,"Благотворителност 3",null,null,{"$f":"Таблица11[[#This Row],[Планиран разход]]-Таблица11[[#This Row],[Действителен разход]]","v":{"v":0,"d":"0 лв."}}]
[null,"Медицински",null,null,{"$f":"Таблица6[[#This Row],[Планиран разход]]-Таблица6[[#This Row],[Действителен разход]]","v":{"v":0,"d":"0 лв."}},null,"Общо",{"$f":"SUBTOTAL(109,Таблица11[Планиран разход])","v":{"v":0,"d":"0 лв."}},{"$f":"SUBTOTAL(109,Таблица11[Действителен разход])","v":{"v":0,"d":"0 лв."}},{"$f":"SUBTOTAL(109,Таблица11[Разлика])","v":{"v":0,"d":"0 лв."}}]
[null,"Поддържане",null,null,{"$f":"Таблица6[[#This Row],[Планиран разход]]-Таблица6[[#This Row],[Действителен разход]]","v":{"v":0,"d":"0 лв."}}]
[null,"Играчки",null,null,{"$f":"Таблица6[[#This Row],[Планиран разход]]-Таблица6[[#This Row],[Действителен разход]]","v":{"v":0,"d":"0 лв."}},null,"ЮРИДИЧЕСКИ","Планиран разход","Действителен разход","Разлика"]
[null,"Други",null,null,{"$f":"Таблица6[[#This Row],[Планиран разход]]-Таблица6[[#This Row],[Действителен разход]]","v":{"v":0,"d":"0 лв."}},null,"Адвокат",null,null,{"$f":"Таблица12[[#This Row],[Планиран разход]]-Таблица12[[#This Row],[Действителен разход]]","v":{"v":0,"d":"0 лв."}}]
[null,"Общо",{"$f":"SUBTOTAL(109,Таблица6[Планиран разход])","v":{"v":0,"d":"0 лв."}},{"$f":"SUBTOTAL(109,Таблица6[Действителен разход])","v":{"v":0,"d":"0 лв."}},{"$f":"SUBTOTAL(109,Таблица6[Разлика])","v":{"v":0,"d":"0 лв."}},null,"Издръжка",null,null,{"$f":"Таблица12[[#This Row],[Планиран разход]]-Таблица12[[#This Row],[Действителен разход]]","v":{"v":0,"d":"0 лв."}}]
[{"$nulls":6},"Плащания по запор или решение",null,null,{"$f":"Таблица12[[#This Row],[Планиран разход]]-Таблица12[[#This Row],[Действителен разход]]","v":{"v":0,"d":"0 лв."}}]
[null,"ХИГИЕННИ МАТЕРИАЛИ","Планиран разход","Действителен разход","Разлика",null,"Други",null,null,{"$f":"Таблица12[[#This Row],[Планиран разход]]-Таблица12[[#This Row],[Действителен разход]]","v":{"v":0,"d":"0 лв."}}]
[null,"Медицински",null,null,{"$f":"Таблица7[[#This Row],[Планиран разход]]-Таблица7[[#This Row],[Действителен разход]]","v":{"v":0,"d":"0 лв."}},null,"Общо",{"$f":"SUBTOTAL(109,Таблица12[Планиран разход])","v":{"v":0,"d":"0 лв."}},{"$f":"SUBTOTAL(109,Таблица12[Действителен разход])","v":{"v":0,"d":"0 лв."}},{"$f":"SUBTOTAL(109,Таблица12[Разлика])","v":{"v":0,"d":"0 лв."}}]
[null,"Коса/нокти",null,null,{"$f":"Таблица7[[#This Row],[Планиран разход]]-Таблица7[[#This Row],[Действителен разход]]","v":{"v":0,"d":"0 лв."}}]
[null,"Облекло",null,null,{"$f":"Таблица7[[#This Row],[Планиран разход]]-Таблица7[[#This Row],[Действителен разход]]","v":{"v":0,"d":"0 лв."}},null,"ОБЩИ ПЛАНИРАНИ РАЗХОДИ",null,null,{"$f":"SUM(C23,C33,C40,C46,C54,C64,H22,H31,H38,H44,H50,H57)","v":{"v":2060,"d":"2,060 лв."}}]
[null,"Химическо чистене",null,null,{"$f":"Таблица7[[#This Row],[Планиран разход]]-Таблица7[[#This Row],[Действителен разход]]","v":{"v":0,"d":"0 лв."}}]
[null,"Здравен клуб",null,null,{"$f":"Таблица7[[#This Row],[Планиран разход]]-Таблица7[[#This Row],[Действителен разход]]","v":{"v":0,"d":"0 лв."}},null,"ОБЩИ ДЕЙСТВИТЕЛНИ РАЗХОДИ",null,null,{"$f":"SUM(D23,D33,D40,D46,D54,D64,I22,I31,I38,I44,I50,I57)","v":{"v":2040,"d":"2,040 лв."}}]
[null,"Организационни разходи или такси",null,null,{"$f":"Таблица7[[#This Row],[Планиран разход]]-Таблица7[[#This Row],[Действителен разход]]","v":{"v":0,"d":"0 лв."}}]
[null,"Други",null,null,{"$f":"Таблица7[[#This Row],[Планиран разход]]-Таблица7[[#This Row],[Действителен разход]]","v":{"v":0,"d":"0 лв."}},null,"ОБЩА РАЗЛИКА",null,null,{"$f":"SUM(E23,E33,E40,E46,E54,E64,J22,J31,J38,J44,J50,J57)","v":{"v":20,"d":"20 лв."}}]
[null,"Общо",{"$f":"SUBTOTAL(109,Таблица7[Планиран разход])","v":{"v":0,"d":"0 лв."}},{"$f":"SUBTOTAL(109,Таблица7[Действителен разход])","v":{"v":0,"d":"0 лв."}},{"$f":"SUBTOTAL(109,Таблица7[Разлика])","v":{"v":0,"d":"0 лв."}}]